fUSD/lending_fUSD_20241106
["ID","MTS","AMOUNT","RATE_DAILY","PERIOD"]
[341421462,1730873434600,-503.81115203,0.00037989,14]
[341421463,1730873434609,-500.0,0.00037989,14]
[341421464,1730873434619,-500.0,0.00037989,14]
[341421465,1730873434628,-500.0,0.00037989,14]
[341421466,1730873434638,-506.82807762,0.00037989,14]
[341421467,1730873434647,-500.0,0.00037989,14]
[341421468,1730873434657,-500.0,0.00037989,14]
[341421469,1730873434667,-500.0,0.00037989,14]
[341421470,1730873434676,-500.0,0.00037989,14]
[341421471,1730873434686,-500.0,0.00037989,14]
[341421472,1730873434696,-500.0,0.00037989,14]
[341421473,1730873434705,-504.27688926,0.00037989,14]
[341421474,1730873434715,-500.0,0.00037989,14]
[341421475,1730873434724,-503.96720254,0.00037989,14]
[341421476,1730873434734,-500.0,0.00037989,14]
[341421477,1730873434743,-504.05216709,0.00037989,14]
[341421478,1730873434753,-500.0,0.00037989,14]
[341421479,1730873434762,-500.0,0.00037989,14]
[341421480,1730873434772,-500.0,0.00037989,14]
[341421481,1730873434781,-500.0,0.00037989,14]
[341421482,1730873434791,-500.0,0.00037989,14]
[341421483,1730873434801,-500.0,0.00037989,14]
[341421484,1730873434811,-500.0,0.00037989,14]
[341421485,1730873434820,-500.0,0.00037989,14]
[341421486,1730873434831,-500.0,0.00037989,14]
[341421487,1730873434840,-534.69,0.00037989,14]
[341421488,1730873434849,-500.0,0.00037989,14]
[341421489,1730873434859,-503.24608594,0.00037989,2]
[341421490,1730873434868,-500.0,0.00037989,14]
[341421491,1730873434877,-500.0,0.00037989,14]
[341421492,1730873434887,-592.81023025,0.00037989,14]
[341421493,1730873434897,-500.0,0.00037989,14]
[341421494,1730873434907,-545.94853299,0.00037989,14]
[341421495,1730873434918,-539.16782399,0.00037989,14]
[341421496,1730873434928,-514.55831927,0.00037989,14]
[341421497,1730873434937,-500.0,0.00037989,14]
[341421498,1730873434947,-511.92694054,0.00037989,14]
[341421499,1730873434958,-500.0,0.00037989,14]
[341421500,1730873434967,-500.0,0.00037989,14]
[341421501,1730873434976,-500.0,0.00037989,14]
[341421502,1730873434987,-500.0,0.00037989,14]
[341421503,1730873434998,-500.0,0.00037989,14]
[341421504,1730873435008,-500.0,0.00037989,14]
[341421505,1730873435222,-500.0,0.00037989,14]
[341421506,1730873435232,-507.86683548,0.00037989,14]
[341421507,1730873435242,-500.0,0.00037989,14]
[341421508,1730873435251,-517.66027449,0.00037989,14]
[341421509,1730873435260,-535.35587204,0.00037989,14]
[341421510,1730873435270,-507.89243127,0.00037989,14]
[341421511,1730873435279,-532.32489971,0.00037989,14]
[341421512,1730873435288,-500.0,0.00037989,14]
[341421513,1730873435297,-500.0,0.00037989,14]
[341421514,1730873435307,-500.0,0.00037989,14]
[341421515,1730873435316,-622.1963306,0.00037989,14]
[341421516,1730873435327,-461.52687049,0.00037989,14]
[341421517,1730873435337,-545.49468277,0.00037989,14]
[341421518,1730873435346,-314.08033762,0.00037989,14]
[341421519,1730873435355,-500.0,0.00037989,14]
[341421520,1730873435364,-569.8382661,0.00037989,14]
[341421521,1730873435373,-786.42,0.00037989,14]
[341421522,1730873435383,-786.42,0.00037989,14]
[341421523,1730873435391,-786.42,0.00037989,14]
[341421524,1730873435401,-786.42,0.00037989,14]
[341421525,1730873435411,-500.0,0.00037989,14]
[341421526,1730873435421,-500.0,0.00037989,14]
[341421527,1730873435430,-189.21,0.00037989,14]
[341421528,1730873435440,-500.0,0.00037989,14]
[341421529,1730873435449,-500.0,0.00037989,14]
[341421530,1730873435458,-500.0,0.00037989,14]
[341421531,1730873435467,-500.0,0.00037989,14]
[341421532,1730873435476,-500.0,0.00037989,14]
[341421533,1730873435486,-500.0,0.00037989,14]
[341421534,1730873435496,-565.86145814,0.00037989,14]
[341421535,1730873435509,-500.0,0.00037989,14]
[341421536,1730873435518,-505.34279181,0.00037989,14]
[341421537,1730873435528,-512.13966545,0.00037989,14]
[341421538,1730873435537,-505.83989524,0.00037989,14]
[341421539,1730873435546,-351.18368911,0.00037989,14]
[341421540,1730873435557,-503.74306071,0.00037989,14]
[341421541,1730873435571,-518.76304363,0.00037989,14]
[341421542,1730873435583,-419.90162431,0.00037989,14]
[341421543,1730873435593,-508.52503737,0.00037989,14]
[341421544,1730873435603,-500.0,0.00037989,14]
[341421545,1730873435612,-507.22219783,0.00037989,14]
[341421546,1730873435622,-194.45953917,0.00037989,14]
[341421547,1730873435634,-517.20305254,0.00037989,14]
[341421548,1730873435643,-502.13419919,0.00037989,10]
[341421549,1730873435653,-500.0,0.00037989,14]
[341421550,1730873435663,-552.82989738,0.00037989,14]
[341421551,1730873435673,-503.45366872,0.00037989,14]
[341421552,1730873435682,-532.74647378,0.00037989,14]
[341421553,1730873435692,-464.71054771,0.00037989,14]
[341421554,1730873435701,-500.0,0.00037989,14]
[341421555,1730873435711,-508.20097982,0.00037989,14]
[341421556,1730873435720,-512.26919377,0.00037989,14]
[341421557,1730873435729,-506.09652351,0.00037989,14]
[341421558,1730873435738,-517.54443022,0.00037989,14]
[341421559,1730873435748,-500.0,0.00037989,14]
[341421560,1730873435757,-503.75014841,0.00037989,14]
[341421561,1730873435766,-514.55787167,0.00037989,14]
[341421562,1730873435775,-500.0,0.00037989,14]
[341421563,1730873435785,-500.0,0.00037989,14]
[341421564,1730873435795,-500.0,0.00037989,14]
[341421565,1730873435805,-521.32582887,0.00037989,14]
[341421566,1730873435815,-500.0,0.00037989,14]
[341421567,1730873435824,-168.23,0.00037989,14]
[341421568,1730873435834,-503.0117564,0.00037989,14]
[341421569,1730873435843,-503.98791963,0.00037989,14]
[341421570,1730873435853,-500.0,0.00037989,14]
[341421571,1730873435862,-511.38806455,0.00037989,14]
[341421572,1730873435872,-500.0,0.00037989,14]
[341421573,1730873435882,-500.0,0.00037989,14]
[341421574,1730873435892,-500.0,0.00037989,14]
[341421575,1730873435902,-502.43160405,0.00037989,14]
[341421576,1730873435912,-500.0,0.00037989,14]
[341421577,1730873435926,-509.7568335,0.00037989,14]
[341421578,1730873435936,-500.0,0.00037989,14]
[341421579,1730873435945,-500.0,0.00037989,14]
[341421580,1730873435955,-546.47362492,0.00037989,14]
[341421581,1730873435966,-500.0,0.00037989,14]
[341421582,1730873435975,-500.0,0.00037989,14]
[341421583,1730873435984,-247.06992293,0.00037989,14]
[341421584,1730873435994,-500.0,0.00037989,14]
[341421585,1730873436003,-481.74,0.00037989,14]
[341421586,1730873436013,-510.01299167,0.00037989,14]
[341421587,1730873436023,-500.0,0.00037989,14]
[341421588,1730873436032,-513.3465485,0.00037989,14]
[341421589,1730873436041,-500.0,0.00037989,14]
[341421590,1730873436051,-500.0,0.00037989,14]
[341421591,1730873436060,-500.0,0.00037989,14]
[341421592,1730873436070,-500.0,0.00037989,14]
[341421593,1730873436080,-500.0,0.00037989,14]
[341421594,1730873436090,-500.0,0.00037989,14]
[341421595,1730873436099,-409.72,0.00037989,14]
[341421596,1730873436108,-500.0,0.00037989,14]
[341421597,1730873436118,-500.0,0.00037989,14]
[341421598,1730873436127,-500.0,0.00037989,14]
[341421599,1730873436136,-500.0,0.00037989,14]
[341421600,1730873436146,-500.0,0.00037989,14]
[341421601,1730873436155,-1578.98,0.00037989,14]
[341421602,1730873436165,-1578.98,0.00037989,14]
[341421603,1730873436174,-500.0,0.00037989,14]
[341421604,1730873436184,-500.0,0.00037989,14]
[341421605,1730873436193,-500.0,0.00037989,14]
[341421606,1730873436203,-500.0,0.00037989,14]
[341421607,1730873436212,-1041.66,0.00037989,14]
[341421608,1730873436222,-1041.66,0.00037989,14]
[341421609,1730873436232,-500.0,0.00037989,14]
[341421610,1730873436242,-2701.91,0.00037989,14]
[341421611,1730873436251,-2701.91,0.00037989,14]
[341421612,1730873436260,-465.88843196,0.00037989,14]
[341421613,1730873436270,-500.0,0.00037989,14]
[341421614,1730873436279,-500.0,0.00037989,14]
[341421615,1730873436289,-500.0,0.00037989,14]
[341421616,1730873436298,-500.0,0.00037989,14]
[341421617,1730873436307,-2178.94,0.00037989,14]
[341421618,1730873436317,-2178.94,0.00037989,14]
[341421619,1730873436327,-616.5,0.00037989,14]
[341421620,1730873436336,-616.5,0.00037989,14]
[341421621,1730873436345,-1780.65,0.00037989,14]
[341421622,1730873436354,-1780.65,0.00037989,14]
[341421623,1730873436363,-500.0,0.00037989,14]
[341421624,1730873436372,-500.0,0.00037989,14]
[341421625,1730873436382,-500.0,0.00037989,14]
[341421626,1730873436391,-329.82,0.00037989,14]
[341421627,1730873436401,-2189.54,0.00037989,7]
[341421628,1730873436410,-242.90788018,0.00037989,7]
[341421629,1730873436751,-1946.63211982,0.00037989,7]
[341421630,1730873436760,-565.03451112,0.00037989,14]
[341421631,1730873436769,-500.0,0.00037989,14]
[341421632,1730873436778,-430.30682299,0.00037989,14]
[341421633,1730873436789,-69.69317701,0.00037989,14]
[341421634,1730873436798,-552.67,0.00037989,14]
[341421635,1730873436807,-552.67,0.00037989,14]
[341421636,1730873436816,-216.3405979,0.00037989,14]
[341421637,1730873436828,-6444.4939093,0.00037989,14]
[341421638,1730873436840,-2937.8560907,0.00037989,14]
[341421639,1730873436849,-8289.4531803,0.00037989,14]
[341421642,1730873437537,-1028.00598623,0.00037229,5]
[341421643,1730873437547,-299.85,0.00037979,10]
[341421644,1730873437556,-1092.8968197,0.00037989,14]
[341421645,1730873437566,-1066.88,0.00037989,14]
[341421646,1730873437575,-1066.88,0.00037989,14]
[341421647,1730873437585,-500.0,0.00037989,14]
[341421648,1730873437594,-500.0,0.00037989,14]
[341421649,1730873437603,-500.0,0.00037989,14]
[341421650,1730873437613,-455.68,0.00037989,14]
[341421651,1730873437622,-7779.72,0.00037989,2]
[341421652,1730873437631,-7779.72,0.00037989,2]
[341421653,1730873437640,-974.76,0.00037989,14]
[341421654,1730873437650,-974.76,0.00037989,14]
[341421655,1730873437659,-500.0,0.00037989,14]
[341421656,1730873437669,-500.0,0.00037989,14]
[341421657,1730873437678,-1740.54,0.00037989,14]
[341421658,1730873437687,-1740.54,0.00037989,14]
[341421659,1730873437697,-500.0,0.00037989,14]
[341421660,1730873437706,-500.0,0.00037989,14]
[341421661,1730873437715,-13063.69901741,0.00037989,4]
[341421662,1730873437726,-500.0,0.00037989,14]
[341421663,1730873437735,-597.15,0.00037989,14]
[341421664,1730873437745,-500.0,0.00037989,14]
[341421665,1730873437755,-500.0,0.00037989,14]
[341421666,1730873437765,-500.0,0.00037989,14]
[341421667,1730873437775,-500.0,0.00037989,14]
[341421668,1730873437785,-500.0,0.00037989,14]
[341421669,1730873437794,-661.25,0.00037989,14]
[341421670,1730873437803,-661.25,0.00037989,14]
[341421671,1730873437813,-1067.28,0.00037989,14]
[341421672,1730873437822,-1067.28,0.00037989,14]
[341421673,1730873437832,-500.0,0.00037989,14]
[341421674,1730873437841,-500.0,0.00037989,14]
[341421675,1730873437850,-586.45,0.00037989,14]
[341421676,1730873437859,-500.0,0.00037989,14]
[341421677,1730873437869,-500.0,0.00037989,14]
[341421678,1730873437878,-500.0,0.00037989,14]
[341421679,1730873437888,-358.09,0.00037989,14]
[341421680,1730873437898,-496.15,0.00037989,14]
[341421681,1730873437907,-151.0,0.00037989,7]
[341421682,1730873437920,-500.0,0.00037989,14]
[341421683,1730873437929,-500.0,0.00037989,14]
[341421684,1730873437939,-500.0,0.00037989,14]
[341421685,1730873437948,-151.0,0.00037989,7]
[341421686,1730873437959,-151.0,0.00037989,7]
[341421687,1730873437968,-233.919984,0.00037989,7]
[341421688,1730873437978,-164.583835,0.00037989,7]
[341421689,1730873437988,-164.583835,0.00037989,7]
[341421690,1730873437998,-151.0,0.00037989,7]
[341421691,1730873438009,-151.0,0.00037989,7]
[341421692,1730873438018,-151.0,0.00037989,7]
[341421693,1730873438028,-242.039403,0.00037989,7]
[341421694,1730873438038,-151.0,0.00037989,7]
[341421695,1730873438047,-151.0,0.00037989,7]
[341421696,1730873438058,-301.513608,0.00037989,7]
[341421697,1730873438067,-151.0,0.00037989,7]
[341421698,1730873438078,-151.0,0.00037989,7]
[341421699,1730873438087,-151.0,0.00037989,7]
[341421700,1730873438096,-151.0,0.00037989,7]
[341421701,1730873438106,-151.0,0.00037989,7]
[341421702,1730873438115,-151.0,0.00037989,7]
[341421703,1730873438125,-151.0,0.00037989,7]
[341421704,1730873438134,-151.0,0.00037989,7]
[341421705,1730873438143,-151.0,0.00037989,7]
[341421706,1730873438153,-230.244154,0.00037989,7]
[341421707,1730873438162,-151.0,0.00037989,7]
[341421708,1730873438171,-151.0,0.00037989,7]
[341421709,1730873438180,-151.0,0.00037989,7]
[341421710,1730873438189,-211.581783,0.00037989,7]
[341421711,1730873438198,-151.0,0.00037989,7]
[341421712,1730873438207,-211.581783,0.00037989,7]
[341421713,1730873438216,-500.0,0.00037989,14]
[341421714,1730873438225,-500.0,0.00037989,14]
[341421715,1730873438234,-151.0,0.00037989,7]
[341421716,1730873438243,-307.479152,0.00037989,7]
[341421717,1730873438252,-151.0,0.00037989,7]
[341421718,1730873438261,-307.479152,0.00037989,7]
[341421719,1730873438270,-154.296735,0.00037989,14]
[341421720,1730873438279,-500.0,0.00037989,14]
[341421721,1730873438289,-500.0,0.00037989,15]
[341421722,1730873438298,-567.48851438,0.00037989,15]
[341421723,1730873438307,-500.0,0.00037989,15]
[341421724,1730873438316,-151.0,0.00037989,7]
[341421725,1730873438325,-151.0,0.00037989,7]
[341421726,1730873438336,-151.0,0.00037989,7]
[341421727,1730873438345,-151.0,0.00037989,7]
[341421728,1730873438354,-151.528372,0.00037989,14]
[341421729,1730873438364,-154.785655,0.00037989,14]
[341421730,1730873438373,-154.785655,0.00037989,14]
[341421731,1730873438382,-500.0,0.00037989,14]
[341421732,1730873438391,-500.0,0.00037989,14]
[341421733,1730873438400,-500.0,0.00037989,14]
[341421734,1730873438409,-200.0,0.00037989,2]
[341421735,1730873438418,-151.0,0.00037989,7]
[341421736,1730873438427,-151.0,0.00037989,7]
[341421737,1730873438436,-500.0,0.00037989,14]
[341421738,1730873438446,-500.0,0.00037989,14]
[341421739,1730873438455,-500.0,0.00037989,14]
[341421740,1730873438464,-602.34056779,0.00037989,14]
[341421741,1730873438473,-500.0,0.00037989,14]
[341421742,1730873438483,-500.0,0.00037989,14]
[341421743,1730873438492,-610.71,0.00037989,14]
[341421744,1730873438502,-500.0,0.00037989,14]
[341421745,1730873438513,-500.0,0.00037989,14]
[341421746,1730873438525,-150.0,0.00037989,14]
[341421747,1730873438534,-150.0,0.00037989,14]
[341421748,1730873438544,-500.0,0.00037989,14]
[341421749,1730873438554,-500.0,0.00037989,14]
[341421750,1730873438563,-500.0,0.00037989,14]
[341421751,1730873438572,-500.0,0.00037989,14]
[341421752,1730873438583,-500.0,0.00037989,14]
[341421753,1730873438592,-500.0,0.00037989,14]
[341421754,1730873438601,-500.0,0.00037989,14]
[341421755,1730873438610,-152.8,0.00037989,14]
[341421756,1730873438619,-500.0,0.00037989,7]
[341421757,1730873438631,-3004.35555264,0.00037989,2]
[341421758,1730873438641,-197.78919994,0.00037989,2]
[341421759,1730873438652,-70741.25967446,0.0003799,5]
[341421760,1730873438683,-51400.7480073,0.0003799,5]
[341421761,1730873438694,-3771.69661662,0.0003799,5]
[341421762,1730873438709,-3337.46909878,0.0003799,5]
[341421763,1730873438721,-7949.08219631,0.0003799,5]
[341421764,1730873438733,-574.18932741,0.0003799,5]
[341421765,1730873438744,-2579.09,0.0003799,5]
[341421767,1730873439443,-625.42636932,0.0003799,5]
[341421768,1730873439550,-282.17128455,0.0003799,5]
[341421769,1730873439577,-2571.0299333,0.0003799,5]
[341421770,1730873439598,-1299.01741827,0.0003799,5]
[341421789,1730873442471,-894.551221,0.000379,25]
[341421790,1730873442481,-64.06876121,0.00037988,2]
[341421791,1730873442492,-96.23596777,0.00037988,2]
[341421792,1730873442502,-1944.77194094,0.00037988,2]
[341421793,1730873442511,-19656.91463782,0.0003799,5]
[341421794,1730873442524,-13473.58261037,0.0003799,5]
[341421795,1730873442696,-11380.29223118,0.0003799,5]
[341421796,1730873442783,-281.41748298,0.0003799,5]
[341421797,1730873442822,-318570.52908777,0.0003799,5]
[341421798,1730873442833,-151.0,0.0003799,7]
[341421800,1730873442843,-151.0,0.0003799,7]
[341421801,1730873442852,-151.0,0.0003799,7]
[341421803,1730873442862,-151.0,0.0003799,7]
[341421826,1730873443074,-151.0,0.0003799,7]
[341421828,1730873443086,-151.0,0.0003799,7]
[341421830,1730873443095,-151.0,0.0003799,7]
[341421832,1730873443105,-151.0,0.0003799,7]
[341421834,1730873443114,-151.0,0.0003799,7]
[341421836,1730873443123,-151.0,0.0003799,7]
[341421838,1730873443132,-151.0,0.0003799,7]
[341421840,1730873443142,-151.0,0.0003799,7]
[341421842,1730873443152,-151.0,0.0003799,7]
[341421844,1730873443163,-151.0,0.0003799,7]
[341421846,1730873443172,-152.175919,0.0003799,7]
[341421848,1730873443181,-164.583835,0.0003799,7]
[341421850,1730873443190,-164.583835,0.0003799,7]
[341421852,1730873443200,-151.0,0.0003799,7]
[341421854,1730873443209,-155.252046,0.0003799,7]
[341421856,1730873443218,-151.0,0.0003799,7]
[341421858,1730873443227,-151.0,0.0003799,7]
[341421860,1730873443236,-151.0,0.0003799,7]
[341421862,1730873443245,-151.0,0.0003799,7]
[341421864,1730873443254,-154.490641,0.0003799,7]
[341421866,1730873443263,-151.0,0.0003799,7]
[341421868,1730873443273,-155.496086,0.0003799,7]
[341421870,1730873443282,-151.0,0.0003799,7]
[341421872,1730873443291,-151.0,0.0003799,7]
[341421874,1730873443300,-151.0,0.0003799,7]
[341421876,1730873443309,-151.0,0.0003799,7]
[341421878,1730873443319,-293.19017,0.0003799,7]
[341421880,1730873443328,-151.0,0.0003799,7]
[341421882,1730873443341,-151.0,0.0003799,7]
[341421884,1730873443355,-211.581783,0.0003799,7]
[341421886,1730873443366,-151.0,0.0003799,7]
[341421888,1730873443375,-211.581783,0.0003799,7]
[341421890,1730873443384,-151.0,0.0003799,7]
[341421892,1730873443394,-307.479152,0.0003799,7]
[341421894,1730873443403,-151.0,0.0003799,7]
[341421895,1730873443411,-307.479152,0.0003799,7]
[341421897,1730873443421,-151.0,0.0003799,7]
[341421899,1730873443430,-151.0,0.0003799,7]
[341421901,1730873443439,-151.0,0.0003799,7]
[341421903,1730873443448,-151.0,0.0003799,7]
[341421905,1730873443457,-151.0,0.0003799,7]
[341421907,1730873443466,-157.778703,0.0003799,7]
[341421909,1730873443475,-500.0,0.00037994,14]
[341421911,1730873443484,-469.75,0.00037997,14]
[341421913,1730873443493,-500.0,0.00037997,14]
[341421915,1730873443503,-500.0,0.00037997,14]
[341421917,1730873443512,-500.0,0.00037997,14]
[341421919,1730873443522,-1395.13,0.00037997,14]
[341421921,1730873443531,-729.84,0.00037997,7]
[341421923,1730873443541,-500.0,0.00037997,14]
[341421925,1730873443550,-500.0,0.00037997,14]
[341421927,1730873443560,-500.0,0.00037997,14]
[341421929,1730873443572,-714.19,0.00037997,14]
[341421932,1730873443584,-6582.85,0.00037997,2]
[341421933,1730873443593,-500.0,0.00037997,14]
[341421934,1730873443602,-500.0,0.00037997,14]
[341421935,1730873443611,-185.24636791,0.00037997,14]
[341421936,1730873443620,-500.0,0.00037997,14]
[341421937,1730873443629,-500.0,0.00037997,14]
[341421938,1730873443638,-786.42,0.00037997,14]
[341421939,1730873443647,-500.0,0.00037997,14]
[341421940,1730873443657,-500.0,0.00037997,14]
[341421941,1730873443666,-500.0,0.00037997,14]
[341421942,1730873443675,-500.0,0.00037997,14]
[341421943,1730873443684,-274.8,0.00037997,14]
[341421944,1730873443695,-1578.98,0.00037997,14]
[341421945,1730873443705,-500.0,0.00037997,14]
[341421947,1730873443714,-500.0,0.00037997,14]
[341421949,1730873443724,-1041.66,0.00037997,14]
[341421951,1730873443735,-2701.91,0.00037997,14]
[341421953,1730873443744,-500.0,0.00037997,14]
[341421955,1730873443753,-500.0,0.00037997,14]
[341421957,1730873443762,-2178.94,0.00037997,14]
[341421959,1730873443771,-616.5,0.00037997,14]
[341421961,1730873443781,-1780.65,0.00037997,14]
[341421963,1730873443790,-500.0,0.00037997,14]
[341421965,1730873443799,-2189.54,0.00037997,7]
[341421967,1730873443809,-500.0,0.00037997,14]
[341421969,1730873443819,-552.67,0.00037997,14]
[341421971,1730873443828,-9382.35,0.00037997,14]
[341421973,1730873443840,-1066.88,0.00037997,14]
[341421975,1730873443848,-500.0,0.00037997,14]
[341421977,1730873443857,-7779.72,0.00037997,2]
[341421979,1730873443867,-974.76,0.00037997,14]
[341421981,1730873443876,-500.0,0.00037997,14]
[341421983,1730873443886,-1740.54,0.00037997,14]
[341421985,1730873443895,-500.0,0.00037997,14]
[341421987,1730873443904,-500.0,0.00037997,14]
[341421989,1730873443914,-500.0,0.00037997,14]
[341421991,1730873443926,-661.25,0.00037997,14]
[341421993,1730873443935,-1067.28,0.00037997,14]
[341421995,1730873443945,-500.0,0.00037997,14]
[341421997,1730873443954,-500.0,0.00037997,14]
[341421999,1730873443963,-500.0,0.00037997,14]
[341422002,1730873443979,-500.0,0.00037997,14]
[341422004,1730873443988,-500.0,0.00037997,14]
[341422006,1730873444000,-500.0,0.00037997,14]
[341422008,1730873444010,-500.0,0.00037997,14]
[341422010,1730873444021,-500.0,0.00037997,14]
[341422012,1730873444030,-300.0,0.00037997,14]
[341422014,1730873444039,-150.0,0.00037997,14]
[341422016,1730873444049,-150.0,0.00037997,14]
[341422018,1730873444058,-500.0,0.00037997,14]
[341422020,1730873444069,-500.0,0.00037997,14]
[341422022,1730873444078,-500.0,0.00037997,14]
[341422024,1730873444090,-1000.0,0.00037997,120]
[341422025,1730873444099,-1500.0,0.00037997,2]
[341422026,1730873444109,-500.0,0.00037997,2]
[341422027,1730873444118,-4726.03,0.00037997,120]
[341422028,1730873444129,-592.05,0.00037998,14]
[341422029,1730873444138,-1098.59,0.00037998,14]
[341422030,1730873444147,-409.25886363,0.00037998,14]
[341422031,1730873444157,-500.0,0.00037998,14]
[341422032,1730873444166,-500.0,0.00037998,14]
[341422033,1730873444176,-500.0,0.00037998,14]
[341422034,1730873444186,-500.0,0.00037998,14]
[341422035,1730873444195,-725.0,0.00037998,14]
[341422036,1730873444204,-725.0,0.00037998,14]
[341422037,1730873444215,-605.77,0.00037998,14]
[341422038,1730873444225,-522.47324062,0.00037998,14]
[341422040,1730873444234,-500.0,0.00037998,14]
[341422042,1730873444244,-579.31161875,0.00037998,2]
[341422043,1730873444253,-500.0,0.00037998,14]
[341422044,1730873444263,-500.0,0.00037998,14]
[341422045,1730873444272,-500.0,0.00037998,14]
[341422046,1730873444282,-500.0,0.00037998,14]
[341422047,1730873444291,-500.0,0.00037998,14]
[341422048,1730873444301,-755.27,0.00037998,14]
[341422049,1730873444310,-500.0,0.00037998,14]
[341422050,1730873444320,-500.0,0.00037998,14]
[341422051,1730873444331,-5102.79,0.00037998,14]
[341422052,1730873444341,-500.0,0.00037998,14]
[341422053,1730873444351,-500.0,0.00037998,14]
[341422054,1730873444361,-500.0,0.00037998,14]
[341422055,1730873444371,-500.0,0.00037998,14]
[341422056,1730873444380,-304.83690294,0.00037998,14]
[341422057,1730873444390,-512.25518757,0.00037998,14]
[341422058,1730873444399,-500.0,0.00037998,14]
[341422059,1730873444409,-3863.71,0.00037998,14]
[341422060,1730873444420,-500.0,0.00037998,14]
[341422061,1730873444429,-594.41448236,0.00037998,14]
[341422062,1730873444438,-500.0,0.00037998,14]
[341422063,1730873444448,-500.0,0.00037998,14]
[341422064,1730873444457,-500.0,0.00037998,14]
[341422065,1730873444466,-500.0,0.00037998,14]
[341422066,1730873444475,-500.0,0.00037998,14]
[341422067,1730873444485,-500.0,0.00037998,14]
[341422068,1730873444494,-500.0,0.00037998,14]
[341422069,1730873444503,-500.0,0.00037998,14]
[341422070,1730873444512,-500.0,0.00037998,14]
[341422071,1730873444522,-500.0,0.00037998,14]
[341422072,1730873444532,-500.0,0.00037998,14]
[341422073,1730873444543,-500.0,0.00037998,14]
[341422074,1730873444554,-589.01,0.00037998,14]
[341422075,1730873444564,-500.0,0.00037998,14]
[341422076,1730873444573,-500.0,0.00037998,14]
[341422077,1730873444585,-500.0,0.00037998,14]
[341422078,1730873444594,-428.31039497,0.00037998,14]
[341422079,1730873444604,-1112.55,0.00037998,14]
[341422080,1730873444613,-500.0,0.00037998,14]
[341422081,1730873444623,-500.0,0.00037998,14]
[341422082,1730873444634,-500.0,0.00037998,14]
[341422083,1730873444643,-1167.38,0.00037998,14]
[341422084,1730873444653,-1516.0,0.00037998,14]
[341422085,1730873444662,-500.0,0.00037998,14]
[341422086,1730873444672,-500.0,0.00037998,14]
[341422087,1730873444681,-500.0,0.00037998,14]
[341422088,1730873444690,-500.0,0.00037998,14]
[341422089,1730873444699,-500.0,0.00037998,14]
[341422090,1730873444709,-500.0,0.00037998,14]
[341422091,1730873444718,-500.0,0.00037998,14]
[341422092,1730873444727,-500.0,0.00037998,14]
[341422093,1730873444737,-500.0,0.00037998,14]
[341422094,1730873444747,-500.0,0.00037998,14]
[341422095,1730873444757,-500.0,0.00037998,14]
[341422096,1730873444768,-1199.7,0.00037998,14]
[341422097,1730873444777,-1682.22,0.00037998,14]
[341422098,1730873444786,-1682.22,0.00037998,14]
[341422099,1730873444795,-500.0,0.00037998,14]
[341422100,1730873444805,-500.0,0.00037998,14]
[341422101,1730873444815,-500.0,0.00037998,14]